bitfinex-derivatives/quotes_BTCF0:USTF0_20251228
["timestamp","ask_amount","ask_price","bid_price","bid_amount"]
[1766920955565,0.02553219,87947.0,87928.0,0.00017]
[1766920955752,0.02553219,87946.0,87928.0,0.00017]
[1766920955953,0.02553219,87945.0,87928.0,0.00017]
[1766920956155,0.02553219,87944.0,87928.0,0.00017]
[1766920956457,0.08245219,87943.0,87928.0,0.00017]
[1766920956661,0.02553219,87942.0,87928.0,0.00017]
[1766920956961,0.05692,87942.0,87928.0,0.00017]
[1766920991593,0.05692,87942.0,87923.0,0.09672]
[1766920991799,0.05692,87942.0,87923.0,0.12672]
[1766921003000,0.05692,87942.0,87923.0,0.03]
[1766921019530,0.09672,87941.0,87923.0,0.03]
[1766921097501,0.05692,87942.0,87923.0,0.03]
[1766921100904,0.00491771,87948.0,87924.0,0.11372359]
[1766921101107,0.00491771,87948.0,87924.0,0.14372359]
[1766921101505,0.00491771,87948.0,87924.0,0.03]
[1766921101697,0.00491771,87948.0,87925.0,0.11371906]
[1766921101898,0.00491771,87948.0,87926.0,0.05692]
[1766921102197,0.00491771,87948.0,87926.0,0.08692]
[1766921102607,0.00491771,87948.0,87927.0,0.11371906]
[1766921102904,0.00491771,87948.0,87927.0,0.14371906]
[1766921124726,0.00491771,87948.0,87928.0,0.09672]
[1766921124925,0.00491771,87948.0,87928.0,0.12672]
[1766921125425,0.00491771,87948.0,87929.0,0.11371712]
[1766921125726,0.00491771,87948.0,87929.0,0.14371712]
[1766921129121,0.00491771,87948.0,87930.0,0.15364]
[1766921129322,0.00491771,87948.0,87930.0,0.18364]
[1766921130731,0.00491771,87948.0,87930.0,0.03]
[1766921130942,0.0825189,87947.0,87925.0,0.05692]
[1766921131140,0.0255989,87946.0,87914.0,0.08179089]
[1766921131335,0.0255989,87946.0,87915.0,0.15364]
[1766921131538,0.0255989,87946.0,87915.0,0.18364]
[1766921155261,0.0255989,87946.0,87916.0,0.15364]
[1766921155460,0.0255989,87946.0,87916.0,0.18364]
[1766921157665,0.0255989,87946.0,87916.0,0.03]
[1766921157860,0.0255989,87946.0,87917.0,0.15364]
[1766921158060,0.0255989,87946.0,87917.0,0.18364]
[1766921160564,0.0255989,87946.0,87918.0,0.05692]
[1766921160766,0.0255989,87946.0,87918.0,0.08692]
[1766921163065,0.0255989,87946.0,87918.0,0.03]
[1766921163267,0.0255989,87946.0,87919.0,0.05692]
[1766921163465,0.0255989,87946.0,87919.0,0.08692]
[1766921165664,0.0255989,87946.0,87919.0,0.03]
[1766921165868,0.0255989,87946.0,87920.0,0.05692]
[1766921168461,0.0255989,87946.0,87914.0,0.08179089]
[1766921168667,0.0255989,87946.0,87915.0,0.15364]
[1766921168966,0.0255989,87946.0,87915.0,0.18364]
[1766921171070,0.0255989,87946.0,87915.0,0.03]
[1766921171270,0.0255989,87946.0,87916.0,0.15364]
[1766921171471,0.0255989,87946.0,87916.0,0.18364]
[1766921173767,0.0255989,87946.0,87916.0,0.03]
[1766921173973,0.0255989,87946.0,87917.0,0.15364]
[1766921174177,0.0255989,87946.0,87917.0,0.18364]
[1766921176577,0.0255989,87946.0,87917.0,0.03]
[1766921176767,0.0255989,87946.0,87918.0,0.15364]
[1766921176968,0.0255989,87946.0,87918.0,0.18364]
[1766921179179,0.0255989,87946.0,87918.0,0.03]
[1766921179369,0.0255989,87946.0,87919.0,0.05692]
[1766921179582,0.0255989,87946.0,87919.0,0.08692]
[1766921181894,0.0255989,87946.0,87919.0,0.03]
[1766921182093,0.0255989,87946.0,87920.0,0.05692]
[1766921184692,0.0255989,87946.0,87911.0,0.01307855]
[1766921184894,0.0255989,87946.0,87912.0,0.15364]
[1766921185194,0.0255989,87946.0,87912.0,0.29736294]
[1766921186093,0.0255989,87946.0,87912.0,0.14372294]
[1766921186295,0.0255989,87946.0,87913.0,0.15364]
[1766921186493,0.0255989,87946.0,87913.0,0.18364]
[1766921188095,0.0255989,87946.0,87914.0,0.08179089]
[1766921188292,0.0255989,87946.0,87914.0,0.11179089]
[1766921190999,0.0255989,87946.0,87914.0,0.03]
[1766921192698,0.0255989,87946.0,87915.0,0.15364]
[1766921192898,0.0255989,87946.0,87915.0,0.18364]
[1766921195600,0.0255989,87946.0,87915.0,0.03]
[1766921195801,0.0255989,87946.0,87916.0,0.15364]
[1766921196001,0.0255989,87946.0,87916.0,0.18364]
[1766921198307,0.0255989,87946.0,87916.0,0.03]
[1766921198495,0.0255989,87946.0,87917.0,0.05692]
[1766921198697,0.0255989,87946.0,87917.0,0.08692]
[1766921201107,0.0255989,87946.0,87917.0,0.03]
[1766921201408,0.0255989,87946.0,87918.0,0.05692]
[1766921201600,0.0255989,87946.0,87918.0,0.08692]
[1766921205311,0.0255989,87946.0,87918.0,0.03]
[1766921205511,0.0255989,87946.0,87919.0,0.05692]
[1766921205711,0.0255989,87946.0,87919.0,0.07692]
[1766921210108,0.09672,87945.0,87919.0,0.07692]
[1766921210311,0.0255989,87944.0,87919.0,0.07692]
[1766921219823,0.0255989,87944.0,87919.0,0.02]
[1766921220024,0.0255989,87944.0,87920.0,0.05692]
[1766921229139,0.02601518,87943.0,87920.0,0.05692]
[1766921229341,0.02601518,87942.0,87920.0,0.05692]
[1766921229537,0.08293518,87941.0,87920.0,0.05692]
[1766921229737,0.02601518,87940.0,87920.0,0.05692]
[1766921233743,0.09672,87939.0,87920.0,0.05692]
[1766921233940,0.02601518,87938.0,87920.0,0.05692]
[1766921235742,0.02601518,87938.0,87914.0,0.01307938]
[1766921235934,0.00017057,87935.0,87916.0,0.05692]
[1766921236139,0.05692,87934.0,87916.0,0.08692]
[1766921236339,4.989e-05,87933.0,87916.0,0.08692]
[1766921250359,0.02229197,87934.0,87916.0,0.08692]
[1766921250561,0.04192,87934.0,87916.0,0.08692]
[1766921254163,0.00017057,87935.0,87916.0,0.08692]
[1766921292405,0.00495715,87943.0,87916.0,0.08692]
[1766921292604,0.17963239,87942.0,87917.0,0.11373264]
[1766921292816,0.15364,87942.0,87917.0,0.14373264]
[1766921293414,0.00017057,87938.0,87921.0,0.00017057]
[1766921293610,0.00017057,87938.0,87921.0,0.03017057]
[1766921296418,0.06136505,87961.0,87922.0,0.21044747]
[1766921296725,0.17952001,87960.0,87922.0,0.24044747]
[1766921296924,0.12260001,87959.0,87922.0,0.24044747]
[1766921297119,0.02588001,87958.0,87922.0,0.24044747]
[1766921297320,0.02588001,87957.0,87922.0,0.24044747]
[1766921297520,0.00017057,87948.0,87931.0,0.00017057]
[1766921318234,0.02585697,87947.0,87931.0,0.00017057]
[1766921318434,0.02585697,87946.0,87931.0,0.00017057]
[1766921318634,0.00017057,87948.0,87931.0,0.00017057]
[1766921318837,0.02585844,87947.0,87931.0,0.00017057]
[1766921319044,0.02585844,87946.0,87931.0,0.00017057]
[1766921319241,0.00017057,87948.0,87931.0,0.00017057]
[1766921319538,0.02586014,87947.0,87931.0,0.00017057]
[1766921319737,0.02586014,87946.0,87931.0,0.00017057]
[1766921319926,0.02586014,87945.0,87931.0,0.00017057]
[1766921320133,0.00017057,87948.0,87931.0,0.00017057]
[1766921320439,0.02586019,87947.0,87931.0,0.00017057]
[1766921320628,0.02586019,87946.0,87931.0,0.00017057]
[1766921320832,0.02586019,87945.0,87931.0,0.00017057]
[1766921321139,0.00017057,87948.0,87931.0,0.00017057]
[1766921321342,0.02586224,87947.0,87931.0,0.00017057]
[1766921321539,0.02586224,87946.0,87931.0,0.00017057]
[1766921321732,0.02586224,87945.0,87931.0,0.00017057]
[1766921321932,0.00017057,87948.0,87931.0,0.00017057]
[1766921322139,0.02586441,87947.0,87931.0,0.00017057]
[1766921322337,0.02586441,87946.0,87931.0,0.00017057]
[1766921322539,0.00017057,87948.0,87931.0,0.00017057]
[1766921322734,0.02586698,87947.0,87931.0,0.00017057]
[1766921322935,0.00017057,87948.0,87931.0,0.00017057]
[1766921323137,0.02586598,87947.0,87931.0,0.00017057]
[1766921323443,0.00017057,87948.0,87931.0,0.00017057]
[1766921323637,0.02586753,87947.0,87931.0,0.00017057]
[1766921323838,0.00017057,87948.0,87931.0,0.00017057]
[1766921324140,0.02586753,87947.0,87931.0,0.00017057]
[1766921324345,0.00017057,87948.0,87931.0,0.00017057]
[1766921324534,0.02596272,87947.0,87931.0,0.00017057]
[1766921324734,0.00017057,87948.0,87931.0,0.00017057]
[1766921324943,0.02596272,87947.0,87931.0,0.00017057]
[1766921325142,0.00017057,87948.0,87931.0,0.00017057]
[1766921325342,0.02596272,87947.0,87931.0,0.00017057]
[1766921325645,0.02596272,87946.0,87931.0,0.00017057]
[1766921325854,0.00017057,87948.0,87931.0,0.00017057]
[1766921326054,0.0259655,87947.0,87931.0,0.00017057]
[1766921326255,0.0259655,87946.0,87931.0,0.00017057]
[1766921326555,0.00017057,87948.0,87931.0,0.00017057]
[1766921326854,0.02597015,87947.0,87931.0,0.00017057]
[1766921327052,0.02597015,87946.0,87931.0,0.00017057]
[1766921327254,0.00017057,87948.0,87931.0,0.00017057]
[1766921327450,0.02596954,87947.0,87931.0,0.00017057]
[1766921327649,0.02596954,87946.0,87931.0,0.00017057]
[1766921327850,0.00017057,87948.0,87931.0,0.00017057]
[1766921328052,0.02596954,87947.0,87931.0,0.00017057]
[1766921328255,0.00017057,87948.0,87931.0,0.00017057]
[1766921341668,0.00017057,87948.0,87923.0,0.08179089]
[1766921341871,0.00017057,87948.0,87924.0,0.15364]
[1766921342063,0.00017057,87948.0,87924.0,0.18364]
[1766921342758,0.00017057,87948.0,87927.0,0.00017057]
[1766921358272,0.02588062,87947.0,87927.0,0.00017057]
[1766921358472,0.00017057,87948.0,87927.0,0.00017057]
[1766921358669,0.02588064,87947.0,87927.0,0.00017057]
[1766921358869,0.00017057,87948.0,87927.0,0.00017057]
[1766921359070,0.02588064,87947.0,87927.0,0.00017057]
[1766921359270,0.00017057,87948.0,87927.0,0.00017057]
[1766921359469,0.02588073,87947.0,87927.0,0.00017057]
[1766921359671,0.00017057,87948.0,87927.0,0.00017057]
[1766921359872,0.02588073,87947.0,87927.0,0.00017057]
[1766921360074,0.00017057,87948.0,87927.0,0.00017057]
[1766921360271,0.0258808,87947.0,87927.0,0.00017057]
[1766921360570,0.00017057,87948.0,87927.0,0.00017057]
[1766921360771,0.02588097,87947.0,87927.0,0.00017057]
[1766921360971,0.00017057,87948.0,87927.0,0.00017057]
[1766921361167,0.02588097,87947.0,87927.0,0.00017057]
[1766921361366,0.00017057,87948.0,87927.0,0.00017057]
[1766921361572,0.02588126,87947.0,87927.0,0.00017057]
[1766921361773,0.00017057,87948.0,87927.0,0.00017057]
[1766921361974,0.02588126,87947.0,87927.0,0.00017057]
[1766921362277,0.00017057,87948.0,87927.0,0.00017057]
[1766921362474,0.02588162,87947.0,87927.0,0.00017057]
[1766921362672,0.00017057,87948.0,87927.0,0.00017057]
[1766921362874,0.02588161,87947.0,87927.0,0.00017057]
[1766921363073,0.00017057,87948.0,87927.0,0.00017057]
[1766921363378,0.02588161,87947.0,87927.0,0.00017057]
[1766921363577,0.00017057,87948.0,87927.0,0.00017057]
[1766921363779,0.02588203,87947.0,87927.0,0.00017057]
[1766921363977,0.00017057,87948.0,87927.0,0.00017057]
[1766921364280,0.02588203,87947.0,87927.0,0.00017057]
[1766921364479,0.00017057,87948.0,87927.0,0.00017057]
[1766921364678,0.02588253,87947.0,87927.0,0.00017057]
[1766921364878,0.00017057,87948.0,87927.0,0.00017057]
[1766921365079,0.02588254,87947.0,87927.0,0.00017057]
[1766921365279,0.00017057,87948.0,87927.0,0.00017057]
[1766921365481,0.02588315,87947.0,87927.0,0.00017057]
[1766921365681,0.00017057,87948.0,87927.0,0.00017057]
[1766921365980,0.02588315,87947.0,87927.0,0.00017057]
[1766921366186,0.00017057,87948.0,87927.0,0.00017057]
[1766921366380,0.02588323,87947.0,87927.0,0.00017057]
[1766921366578,0.00017057,87948.0,87927.0,0.00017057]
[1766921366777,0.0258837,87947.0,87927.0,0.00017057]
[1766921366978,0.00017057,87948.0,87927.0,0.00017057]
[1766921367178,0.0258837,87947.0,87927.0,0.00017057]
[1766921367378,0.00017057,87948.0,87927.0,0.00017057]
[1766921367580,0.02588438,87947.0,87927.0,0.00017057]
[1766921367883,0.00017057,87948.0,87927.0,0.00017057]
[1766921368074,0.02588438,87947.0,87927.0,0.00017057]
[1766921368271,0.00017057,87948.0,87927.0,0.00017057]
[1766921379293,0.09689057,87948.0,87927.0,0.00017057]
[1766921397317,0.09689057,87948.0,87928.0,0.02092]
[1766921397521,0.09689057,87948.0,87929.0,0.05692]
[1766921397717,0.09689057,87948.0,87929.0,0.02092]
[1766921403720,0.00017057,87948.0,87929.0,0.02092]
[1766921403923,0.15364,87947.0,87929.0,0.02092]
[1766921408340,0.02580912,87946.0,87929.0,0.02092]
[1766921408634,0.15364,87947.0,87929.0,0.02092]
[1766921408826,0.02580912,87946.0,87929.0,0.02092]
[1766921409025,0.15364,87947.0,87929.0,0.02092]
[1766921409329,0.02580912,87946.0,87929.0,0.02092]
[1766921409631,0.15364,87947.0,87929.0,0.02092]
[1766921409828,0.02580915,87946.0,87929.0,0.02092]
[1766921410027,0.15364,87947.0,87929.0,0.02092]
[1766921410228,0.02580915,87946.0,87929.0,0.02092]
[1766921410430,0.15364,87947.0,87929.0,0.02092]
[1766921410631,0.02580915,87946.0,87929.0,0.02092]
[1766921410832,0.15364,87947.0,87929.0,0.02092]
[1766921411034,0.02580915,87946.0,87929.0,0.02092]
[1766921411334,0.15364,87947.0,87929.0,0.02092]
[1766921411535,0.02580916,87946.0,87929.0,0.02092]
[1766921411736,0.15364,87947.0,87929.0,0.02092]
[1766921411934,0.02580916,87946.0,87929.0,0.02092]
[1766921412132,0.15364,87947.0,87929.0,0.02092]
[1766921412327,0.02580918,87946.0,87929.0,0.02092]
[1766921412532,0.15364,87947.0,87929.0,0.02092]
[1766921412732,0.02580918,87946.0,87929.0,0.02092]
[1766921412935,0.15364,87947.0,87929.0,0.02092]
[1766921413135,0.02580918,87946.0,87929.0,0.02092]
[1766921413436,0.15364,87947.0,87929.0,0.02092]
[1766921413627,0.02580919,87946.0,87929.0,0.02092]
[1766921413824,0.15364,87947.0,87929.0,0.02092]
[1766921414036,0.02580919,87946.0,87929.0,0.02092]
[1766921414237,0.15364,87947.0,87929.0,0.02092]
[1766921414437,0.02587035,87946.0,87929.0,0.02092]
[1766921414639,0.15364,87947.0,87929.0,0.02092]
[1766921414832,0.02587035,87946.0,87929.0,0.02092]
[1766921415129,0.15364,87947.0,87929.0,0.02092]
[1766921415326,0.02587038,87946.0,87929.0,0.02092]
[1766921415528,0.15364,87947.0,87929.0,0.02092]
[1766921415728,0.02587038,87946.0,87929.0,0.02092]
[1766921415928,0.15364,87947.0,87929.0,0.02092]
[1766921416129,0.02587038,87946.0,87929.0,0.02092]
[1766921416328,0.15364,87947.0,87929.0,0.02092]
[1766921416529,0.02587042,87946.0,87929.0,0.02092]
[1766921416732,0.15364,87947.0,87929.0,0.02092]
[1766921416932,0.02587042,87946.0,87929.0,0.02092]
[1766921417132,0.15364,87947.0,87929.0,0.02092]
[1766921417432,0.02587046,87946.0,87929.0,0.02092]
[1766921417626,0.15364,87947.0,87929.0,0.02092]
[1766921417829,0.02587046,87946.0,87929.0,0.02092]
[1766921418028,0.15364,87947.0,87929.0,0.02092]
[1766921442471,0.15364,87947.0,87923.0,0.09672]
[1766921442765,0.15364,87947.0,87923.0,0.18364]
[1766921458475,0.02596455,87946.0,87923.0,0.18364]
[1766921458664,0.02596455,87945.0,87923.0,0.18364]
[1766921458866,0.15364,87947.0,87923.0,0.18364]
[1766921459068,0.02596455,87946.0,87923.0,0.18364]
[1766921459363,0.02596455,87945.0,87923.0,0.18364]
[1766921459568,0.15364,87947.0,87923.0,0.18364]
[1766921459770,0.02596445,87946.0,87923.0,0.18364]
[1766921459965,0.02596445,87945.0,87923.0,0.18364]
[1766921460169,0.15364,87947.0,87923.0,0.18364]
[1766921460377,0.02596446,87946.0,87923.0,0.18364]
[1766921460576,0.02596446,87945.0,87923.0,0.18364]
[1766921460778,0.15364,87947.0,87923.0,0.18364]
[1766921461078,0.02596446,87946.0,87923.0,0.18364]
[1766921461282,0.02596446,87945.0,87923.0,0.18364]
[1766921461479,0.15364,87947.0,87923.0,0.18364]
[1766921461778,0.02596451,87946.0,87923.0,0.18364]
[1766921462077,0.02596451,87945.0,87923.0,0.18364]
[1766921462278,0.15364,87947.0,87923.0,0.18364]
[1766921462480,0.02596455,87946.0,87923.0,0.18364]
[1766921462681,0.02596455,87945.0,87923.0,0.18364]
[1766921462882,0.15364,87947.0,87923.0,0.18364]
[1766921463181,0.02596455,87946.0,87923.0,0.18364]
[1766921463381,0.02596455,87945.0,87923.0,0.18364]
[1766921463582,0.15364,87947.0,87923.0,0.18364]
[1766921463781,0.02596451,87946.0,87923.0,0.18364]
[1766921464080,0.02596451,87945.0,87923.0,0.18364]
[1766921464284,0.15364,87947.0,87923.0,0.18364]
[1766921464474,0.02596452,87946.0,87923.0,0.18364]
[1766921464675,0.02596452,87945.0,87923.0,0.18364]
[1766921464877,0.15364,87947.0,87923.0,0.18364]
[1766921465079,0.02596452,87946.0,87923.0,0.18364]
[1766921465281,0.02596452,87945.0,87923.0,0.18364]
[1766921465476,0.15364,87947.0,87923.0,0.18364]
[1766921465676,0.02596458,87946.0,87923.0,0.18364]
[1766921465876,0.02596458,87945.0,87923.0,0.18364]
[1766921466078,0.15364,87947.0,87923.0,0.18364]
[1766921466287,0.02596458,87946.0,87923.0,0.18364]
[1766921466485,0.02596458,87945.0,87923.0,0.18364]
[1766921466688,0.15364,87947.0,87923.0,0.18364]
[1766921466888,0.02596471,87946.0,87923.0,0.18364]
[1766921467085,0.02596471,87945.0,87923.0,0.18364]
[1766921467288,0.15364,87947.0,87923.0,0.18364]
[1766921467486,0.02596489,87946.0,87923.0,0.18364]
[1766921467687,0.02596489,87945.0,87923.0,0.18364]
[1766921467891,0.15364,87947.0,87923.0,0.18364]
[1766921468186,0.02596489,87946.0,87923.0,0.18364]
[1766921468486,0.15364,87947.0,87923.0,0.18364]
[1766921497703,0.00017057,87948.0,87923.0,0.18364]
[1766921497911,0.05692,87947.0,87923.0,0.18364]
[1766921519331,0.05692,87946.0,87923.0,0.18364]
[1766921528336,0.02567676,87945.0,87923.0,0.18364]
[1766921528541,0.02567676,87944.0,87923.0,0.18364]
[1766921528842,0.02567676,87943.0,87923.0,0.18364]
[1766921529142,0.05692,87946.0,87923.0,0.18364]
[1766921529340,0.02567676,87945.0,87923.0,0.18364]
[1766921529539,0.02567676,87944.0,87923.0,0.18364]
[1766921529741,0.02567676,87943.0,87923.0,0.18364]
[1766921530041,0.05692,87946.0,87923.0,0.18364]
[1766921530339,0.02567693,87945.0,87923.0,0.18364]
[1766921530644,0.02567693,87944.0,87923.0,0.18364]
[1766921530841,0.02567693,87943.0,87923.0,0.18364]
[1766921531044,0.05692,87946.0,87923.0,0.18364]
[1766921531234,0.02567713,87945.0,87923.0,0.18364]
[1766921531434,0.02567713,87944.0,87923.0,0.18364]
[1766921531735,0.02567713,87943.0,87923.0,0.18364]
[1766921531934,0.05692,87946.0,87923.0,0.18364]
[1766921532137,0.02567736,87945.0,87923.0,0.18364]
[1766921532434,0.02567736,87944.0,87923.0,0.18364]
[1766921532641,0.02567736,87943.0,87923.0,0.18364]
[1766921532839,0.05692,87946.0,87923.0,0.18364]
[1766921533043,0.02567765,87945.0,87923.0,0.18364]
[1766921533245,0.02567765,87944.0,87923.0,0.18364]
[1766921533444,0.05692,87946.0,87923.0,0.18364]
[1766921533445,0.02567765,87943.0,87923.0,0.18364]
[1766921533651,0.05692,87946.0,87923.0,0.18364]
[1766921533946,0.025678,87945.0,87923.0,0.18364]
[1766921534246,0.025678,87944.0,87923.0,0.18364]
[1766921534447,0.025678,87943.0,87923.0,0.18364]
[1766921534648,0.05692,87946.0,87923.0,0.18364]
[1766921534845,0.02566876,87945.0,87923.0,0.18364]
[1766921535145,0.02566876,87944.0,87923.0,0.18364]
[1766921535344,0.02566876,87943.0,87923.0,0.18364]
[1766921535541,0.05692,87946.0,87923.0,0.18364]
[1766921535749,0.02566924,87945.0,87923.0,0.18364]
[1766921536047,0.02566924,87944.0,87923.0,0.18364]
[1766921536344,0.02566924,87943.0,87923.0,0.18364]
[1766921536544,0.05692,87946.0,87923.0,0.18364]
[1766921536747,0.02567007,87945.0,87923.0,0.18364]
[1766921536946,0.02567007,87944.0,87923.0,0.18364]
[1766921537147,0.02567007,87943.0,87923.0,0.18364]
[1766921537348,0.05692,87946.0,87923.0,0.18364]
[1766921537544,0.02567001,87945.0,87923.0,0.18364]
[1766921537850,0.02567001,87944.0,87923.0,0.18364]
[1766921538052,0.02567001,87943.0,87923.0,0.18364]
[1766921538253,0.05692,87946.0,87923.0,0.18364]
[1766921558364,0.00017057,87948.0,87923.0,0.18364]
[1766921558663,0.08258927,87947.0,87923.0,0.18364]
[1766921558858,0.05692,87947.0,87923.0,0.18364]
[1766921568871,0.02562876,87946.0,87923.0,0.18364]
[1766921569074,0.05692,87947.0,87923.0,0.18364]
[1766921570172,0.02562889,87946.0,87923.0,0.18364]
[1766921570372,0.05692,87947.0,87923.0,0.18364]
[1766921572071,0.02562925,87946.0,87923.0,0.18364]
[1766921572274,0.05692,87947.0,87923.0,0.18364]
[1766921572771,0.02562951,87946.0,87923.0,0.18364]
[1766921572972,0.05692,87947.0,87923.0,0.18364]
[1766921573170,0.05692,87947.0,87924.0,0.15364]
[1766921573171,0.02562952,87946.0,87924.0,0.15364]
[1766921573378,0.02562952,87945.0,87924.0,0.18364]
[1766921573564,0.05692,87947.0,87924.0,0.18364]
[1766921573565,0.02562952,87944.0,87924.0,0.18364]
[1766921573771,0.05692,87947.0,87924.0,0.18364]
[1766921573969,0.02562731,87946.0,87924.0,0.18364]
[1766921574172,0.02562731,87945.0,87924.0,0.18364]
[1766921574373,0.02562731,87944.0,87925.0,0.05692]
[1766921574574,0.05692,87947.0,87925.0,0.05692]
[1766921574775,0.02562578,87946.0,87925.0,0.05692]
[1766921574975,0.02562578,87945.0,87925.0,0.05692]
[1766921575274,0.02562578,87944.0,87925.0,0.05692]
[1766921575573,0.05692,87947.0,87925.0,0.05692]
[1766921575774,0.0256246,87946.0,87925.0,0.05692]
[1766921575975,0.0256246,87945.0,87925.0,0.05692]
[1766921576172,0.0256246,87944.0,87925.0,0.05692]
[1766921576474,0.05692,87947.0,87925.0,0.05692]
[1766921576675,0.02562367,87946.0,87925.0,0.05692]
[1766921576872,0.02562367,87945.0,87925.0,0.05692]
[1766921577072,0.05692,87947.0,87925.0,0.05692]
[1766921577275,0.02562367,87946.0,87925.0,0.05692]
[1766921577474,0.02562367,87945.0,87925.0,0.05692]
[1766921577674,0.05692,87947.0,87925.0,0.05692]
[1766921577876,0.02562292,87946.0,87925.0,0.05692]
[1766921578077,0.02562292,87945.0,87925.0,0.05692]
[1766921578378,0.02562229,87944.0,87925.0,0.05692]
[1766921578680,0.02562229,87943.0,87925.0,0.05692]
[1766921578863,0.02562229,87942.0,87925.0,0.05692]
[1766921579067,0.02562229,87941.0,87925.0,0.05692]
[1766921579267,0.02562229,87940.0,87925.0,0.05692]
[1766921579474,0.05692,87947.0,87925.0,0.05692]
[1766921579675,0.02562177,87946.0,87925.0,0.05692]
[1766921579975,0.02562177,87945.0,87925.0,0.05692]
[1766921580176,0.02562177,87944.0,87925.0,0.05692]
[1766921580375,0.02562177,87943.0,87925.0,0.05692]
[1766921580576,0.02562177,87942.0,87925.0,0.05692]
[1766921580777,0.02562177,87941.0,87925.0,0.05692]
[1766921581076,0.02562177,87940.0,87925.0,0.05692]
[1766921581278,0.05692,87947.0,87925.0,0.05692]
[1766921581466,0.02562123,87946.0,87925.0,0.05692]
[1766921581668,0.02562123,87945.0,87925.0,0.05692]
[1766921581869,0.02562123,87944.0,87925.0,0.05692]
[1766921582070,0.02562123,87943.0,87925.0,0.05692]
[1766921582271,0.02562123,87942.0,87925.0,0.05692]
[1766921582467,0.02562123,87941.0,87925.0,0.05692]
[1766921582672,0.05692,87947.0,87925.0,0.05692]
[1766921582880,0.02562087,87946.0,87925.0,0.05692]
[1766921583179,0.02562087,87945.0,87925.0,0.05692]
[1766921583376,0.02562087,87944.0,87925.0,0.05692]
[1766921583576,0.02562087,87943.0,87925.0,0.05692]
[1766921583780,0.02562087,87942.0,87925.0,0.05692]
[1766921583972,0.02562087,87941.0,87925.0,0.05692]
[1766921584172,0.05692,87947.0,87925.0,0.05692]
[1766921584379,0.02562036,87946.0,87925.0,0.05692]
[1766921584580,0.02562036,87945.0,87925.0,0.05692]
[1766921584781,0.02562036,87944.0,87925.0,0.05692]
[1766921585080,0.02562036,87943.0,87925.0,0.05692]
[1766921585285,0.02562036,87942.0,87925.0,0.05692]
[1766921585482,0.02562036,87941.0,87925.0,0.05692]
[1766921585682,0.0048788,87943.0,87925.0,0.05692]
[1766921585980,0.02562021,87942.0,87925.0,0.05692]
[1766921586173,0.02562021,87941.0,87925.0,0.05692]
[1766921586376,0.02562021,87940.0,87925.0,0.05692]
[1766921586583,0.0048788,87943.0,87925.0,0.05692]
[1766921586784,0.02562002,87942.0,87925.0,0.05692]
[1766921587082,0.02562002,87941.0,87925.0,0.05692]
[1766921587282,0.02562002,87940.0,87925.0,0.05692]
[1766921587483,0.0048788,87943.0,87925.0,0.05692]
[1766921587685,0.02561985,87942.0,87925.0,0.05692]
[1766921587883,0.0048788,87943.0,87925.0,0.05692]
[1766921587884,0.02561985,87941.0,87925.0,0.05692]
[1766921588076,0.0048788,87943.0,87925.0,0.05692]
[1766921588272,0.02561986,87942.0,87925.0,0.05692]
[1766921588476,0.0048788,87943.0,87925.0,0.05692]
[1766921595687,0.0048788,87943.0,87916.0,0.08179089]
[1766921595895,0.0048788,87943.0,87917.0,0.15364]
[1766921596091,0.0048788,87943.0,87917.0,0.29736165]
[1766921602389,0.0048788,87943.0,87917.0,0.37915254]
[1766921606896,0.0048788,87943.0,87917.0,0.29736165]
[1766921610594,0.0048788,87943.0,87917.0,0.14372165]
[1766921610799,0.02568276,87942.0,87917.0,0.03]
[1766921610999,0.02568276,87941.0,87905.0,0.08179089]
[1766921611201,0.00017057,87932.0,87906.0,0.05692]
[1766921611397,0.08260276,87931.0,87906.0,0.08692]
[1766921611602,0.12240276,87930.0,87906.0,0.08692]
[1766921611786,0.02568276,87929.0,87906.0,0.08692]
[1766921612491,0.09672,87930.0,87906.0,0.08692]
[1766921612698,0.02593894,87929.0,87906.0,0.08692]
[1766921612895,0.09672,87930.0,87906.0,0.08692]
[1766921613097,0.02593894,87929.0,87906.0,0.08692]
[1766921613398,0.09672,87930.0,87906.0,0.08692]
[1766921618507,0.15368,87929.0,87906.0,0.08692]
[1766921618702,0.00017057,87932.0,87906.0,0.08692]
[1766921618897,0.03676,87931.0,87907.0,0.11374235]
[1766921619098,0.03676,87931.0,87907.0,0.14374235]
[1766921619307,0.00017057,87932.0,87907.0,0.14374235]
[1766921619705,0.06672,87937.0,87907.0,0.14374235]
[1766921620704,0.00017057,87931.0,87913.0,0.00017057]
[1766921621002,0.00017057,87931.0,87914.0,0.15372]
[1766921621202,0.00017057,87931.0,87914.0,0.18372]
[1766921638624,0.06672,87937.0,87914.0,0.18372]
[1766921639619,0.00017057,87934.0,87914.0,0.18372]
[1766921641828,0.05696,87940.0,87914.0,0.18372]
[1766921642015,0.02612179,87939.0,87914.0,0.18372]
[1766921642215,0.02612179,87938.0,87914.0,0.18372]
[1766921642415,0.05696,87940.0,87914.0,0.18372]
[1766921642616,0.00017057,87936.0,87914.0,0.18372]
[1766921649328,0.02615308,87935.0,87914.0,0.18372]
[1766921649527,0.00017057,87936.0,87914.0,0.18372]
[1766921649728,0.02615308,87935.0,87914.0,0.18372]
[1766921649930,0.00017057,87936.0,87914.0,0.18372]
[1766921650226,0.02615308,87935.0,87914.0,0.18372]
[1766921650427,0.00017057,87936.0,87914.0,0.18372]
[1766921650628,0.02615307,87935.0,87914.0,0.18372]
[1766921650929,0.00017057,87936.0,87914.0,0.18372]
[1766921651134,0.02615307,87935.0,87914.0,0.18372]
[1766921651423,0.00017057,87936.0,87914.0,0.18372]
[1766921651630,0.02615303,87935.0,87914.0,0.18372]
[1766921651923,0.02615303,87934.0,87914.0,0.18372]
[1766921652129,0.02615303,87933.0,87914.0,0.18372]
[1766921652328,0.00017057,87936.0,87914.0,0.18372]
[1766921652531,0.02615352,87935.0,87914.0,0.18372]
[1766921652731,0.02615352,87934.0,87914.0,0.18372]
[1766921653029,0.00017057,87936.0,87914.0,0.18372]
[1766921653229,0.02594186,87935.0,87914.0,0.18372]
[1766921653429,0.02594186,87934.0,87914.0,0.18372]
[1766921653631,0.00017057,87936.0,87914.0,0.18372]
[1766921653831,0.02594132,87935.0,87914.0,0.18372]
[1766921654031,0.02594132,87934.0,87914.0,0.18372]